bitfinex/quotes_BTCUSD_20251015
["timestamp","ask_amount","ask_price","bid_price","bid_amount"]
[1760547875933,0.00015048,110790.0,110780.0,1.48816596]
[1760547876340,0.00015048,110790.0,110780.0,1.60232596]
[1760547876980,0.00015048,110790.0,110780.0,1.12438812]
[1760547877183,0.00015048,110790.0,110780.0,1.60232596]
[1760547877389,0.00015048,110790.0,110780.0,1.48816596]
[1760547877588,0.00015048,110790.0,110780.0,1.60232596]
[1760547877798,0.00015048,110790.0,110780.0,0.48969012]
[1760547877997,0.00015048,110790.0,110780.0,0.27022812]
[1760547878659,0.18067218,110790.0,110780.0,0.27022812]
[1760547879756,0.00015048,110790.0,110780.0,0.27022812]
[1760547880888,0.00015048,110790.0,110780.0,0.74816596]
[1760547881993,0.18067218,110790.0,110780.0,0.27022812]
[1760547882173,0.00015048,110790.0,110780.0,0.27022812]
[1760547883337,0.00015048,110790.0,110780.0,0.74816596]
[1760547885958,0.00015048,110790.0,110780.0,1.08816596]
[1760547886355,10.0,110810.0,110800.0,0.18050541]
[1760547886562,10.0,110810.0,110800.0,0.74813337]
[1760547887305,10.0,110810.0,110800.0,1.08813337]
[1760547887529,10.0,110810.0,110800.0,1.56607121]
[1760547887931,10.0,110810.0,110800.0,1.68019121]
[1760547888599,10.0,110810.0,110800.0,2.08019121]
[1760547888805,9.48363922,110810.0,110800.0,2.08019121]
[1760547889013,9.48368936,110810.0,110800.0,1.96707121]
[1760547889463,9.48368936,110810.0,110800.0,2.56677611]
[1760547889699,9.06752167,110810.0,110800.0,2.60195839]
[1760547889925,9.06752167,110810.0,110800.0,2.51244197]
[1760547890141,9.06752167,110810.0,110800.0,2.62656197]
[1760547890600,9.06752167,110810.0,110800.0,2.62756197]
[1760547890789,9.06752167,110810.0,110800.0,2.51344197]
[1760547891040,9.06752167,110810.0,110800.0,2.62656197]
[1760547891259,9.06752167,110810.0,110800.0,2.51344197]
[1760547891482,9.06752167,110810.0,110800.0,2.62956197]
[1760547891703,9.06752167,110810.0,110800.0,1.97007121]
[1760547891948,9.06752167,110810.0,110800.0,1.12831553]
[1760547892175,9.06752167,110810.0,110800.0,1.26625337]
[1760547892405,9.06752167,110810.0,110800.0,1.49213337]
[1760547892628,9.06752167,110810.0,110800.0,1.60625337]
[1760547892848,9.06752167,110810.0,110800.0,1.49013337]
[1760547893076,9.06752167,110810.0,110800.0,1.60525337]
[1760547893352,9.06752167,110810.0,110800.0,1.96707121]
[1760547893539,9.06752167,110810.0,110800.0,2.08219121]
[1760547893771,9.06752167,110810.0,110800.0,1.60425337]
[1760547894194,9.06752167,110810.0,110800.0,1.12527553]
[1760547894412,9.06752167,110810.0,110800.0,1.60321337]
[1760547894634,9.06752167,110810.0,110800.0,1.49013337]
[1760547894844,9.06752167,110810.0,110800.0,0.61219553]
[1760547895051,9.06752167,110810.0,110800.0,1.09013337]
[1760547896584,9.06752167,110810.0,110800.0,1.56807121]
[1760547896793,9.06752167,110810.0,110800.0,1.68215121]
[1760547897002,9.06752167,110810.0,110800.0,1.68219121]
[1760547897454,8.65112719,110810.0,110800.0,1.56807121]
[1760547897660,8.65112719,110810.0,110800.0,1.68219121]
[1760547898071,8.65112719,110810.0,110800.0,1.68119121]
[1760547898291,8.65112719,110810.0,110800.0,1.56707121]
[1760547898524,8.65112719,110810.0,110800.0,1.68015121]
[1760547898697,8.65112719,110810.0,110800.0,2.08115121]
[1760547899123,8.65112719,110810.0,110800.0,1.96707121]
[1760547899458,8.65112719,110810.0,110800.0,1.96807121]
[1760547899658,8.65112719,110810.0,110800.0,1.12627553]
[1760547899888,8.65112719,110810.0,110800.0,2.08215121]
[1760547901548,8.65112719,110810.0,110800.0,1.12627553]
[1760547901750,8.65112719,110810.0,110800.0,2.08215121]
[1760547902468,8.65112719,110810.0,110800.0,2.08211121]
[1760547903849,7.77466356,110810.0,110800.0,2.48983839]
[1760547904049,7.49043517,110810.0,110800.0,2.60387839]
[1760547904251,6.73560561,110810.0,110800.0,3.06144441]
[1760547904451,6.70850441,110810.0,110800.0,3.17552441]
[1760547904658,6.38763677,110810.0,110800.0,3.06144441]
[1760547904945,6.03268357,110810.0,110800.0,3.17452441]
[1760547905148,5.87215033,110810.0,110800.0,1.70456873]
[1760547905350,5.78504863,110810.0,110800.0,2.75424839]
[1760547905505,5.78504863,110810.0,110800.0,2.09083839]
[1760547905703,5.70537408,110810.0,110800.0,2.49083839]
[1760547905914,5.70537408,110810.0,110800.0,0.75778043]
[1760547906118,5.70537408,110810.0,110800.0,0.75013337]
[1760547906317,5.70537408,110810.0,110800.0,0.86225337]
[1760547906724,5.70537408,110810.0,110800.0,1.09113337]
[1760547906922,5.70537408,110810.0,110800.0,1.09413337]
[1760547907126,5.70537408,110810.0,110800.0,0.86521337]
[1760547907359,5.70537408,110810.0,110800.0,0.86221337]
[1760547907543,5.70537408,110810.0,110800.0,1.20321337]
[1760547908165,5.70537408,110810.0,110800.0,1.08913337]
[1760547908325,5.70537408,110810.0,110800.0,1.20321337]
[1760547908523,5.70537408,110810.0,110800.0,1.08913337]
[1760547908781,5.70537408,110810.0,110800.0,0.27219553]
[1760547909226,5.70537408,110810.0,110800.0,0.61219553]
[1760547910392,5.70537408,110810.0,110800.0,1.08913337]
[1760547910806,5.70537408,110810.0,110800.0,1.08813337]
[1760547911032,5.70537408,110810.0,110800.0,0.61019553]
[1760547911674,5.70537408,110810.0,110800.0,0.61119553]
[1760547912311,5.70537408,110810.0,110800.0,0.08969012]
[1760547912525,5.70537408,110810.0,110800.0,0.27119553]
[1760547913160,5.70537408,110810.0,110800.0,0.27019553]
[1760547913375,5.70537408,110810.0,110800.0,0.08969012]
[1760547913583,5.70537408,110810.0,110800.0,0.27019553]
[1760547915705,5.70537408,110810.0,110800.0,1.08813337]
[1760547915920,5.70537408,110810.0,110800.0,1.20221337]
[1760547916558,5.70537408,110810.0,110800.0,0.72427553]
[1760547917010,5.70537408,110810.0,110800.0,0.61019553]
[1760547917970,5.70537408,110810.0,110800.0,0.43069012]
[1760547918218,5.8858632,110810.0,110800.0,0.43069012]
[1760547918424,5.70537408,110810.0,110800.0,0.61019553]
[1760547918633,5.70537408,110810.0,110800.0,0.42969012]
[1760547918864,5.70537408,110810.0,110800.0,0.61119553]
[1760547919532,6.36380104,110810.0,110800.0,0.09069012]
[1760547919758,5.70537408,110810.0,110800.0,0.09069012]
[1760547920256,5.8858632,110810.0,110800.0,0.09069012]
[1760547920694,5.8858632,110810.0,110800.0,0.08969012]
[1760547920925,6.18331192,110810.0,110800.0,0.08969012]
[1760547921158,6.18331192,110810.0,110780.0,0.34]
[1760547921394,0.01875795,110800.0,110790.0,0.08969012]
[1760547921831,0.01295624,110800.0,110790.0,0.08969012]
[1760547922544,0.01295624,110800.0,110760.0,0.34894854]
[1760547922772,0.49669579,110800.0,110770.0,0.08969012]
[1760547922990,0.47793784,110800.0,110770.0,0.08969012]
[1760547923220,0.01758974,110790.0,110770.0,0.08969012]
[1760547923674,0.49552758,110790.0,110770.0,0.08969012]
[1760547923956,0.47793784,110790.0,110770.0,0.08969012]
[1760547924413,0.47793784,110780.0,110750.0,0.0717521]
[1760547924638,0.01875795,110770.0,110760.0,0.08969012]
[1760547925095,0.01875795,110770.0,110760.0,0.10512061]
[1760547925318,0.01557599,110790.0,110760.0,0.10512061]
[1760547925545,0.01875795,110790.0,110760.0,0.10508151]
[1760547925760,0.01875795,110790.0,110760.0,0.08969012]
[1760547925980,0.01880807,110790.0,110760.0,0.08969012]
[1760547926689,0.01283461,110790.0,110760.0,0.08969012]
[1760547927374,0.01283461,110790.0,110760.0,0.0987395]
[1760547927862,0.01283461,110790.0,110760.0,0.09069012]
[1760547928080,0.75734674,110790.0,110760.0,0.09069012]
[1760547928307,0.73858879,110790.0,110760.0,0.08969012]
[1760547928772,5.012e-05,110790.0,110770.0,0.01713626]
[1760547929008,5.012e-05,110790.0,110780.0,0.08969012]
[1760547929474,5.012e-05,110790.0,110760.0,0.34924138]
[1760547929698,0.73858879,110790.0,110760.0,0.08969012]
[1760547930156,0.73858879,110790.0,110760.0,0.09917724]
[1760547930430,5.012e-05,110790.0,110760.0,0.10138299]
[1760547930833,5.012e-05,110790.0,110770.0,0.10590461]
[1760547930834,0.01880807,110790.0,110770.0,0.10590461]
[1760547931131,0.01293392,110790.0,110770.0,0.08969012]
[1760547931379,0.01880807,110790.0,110770.0,0.08969012]
[1760547932266,0.01241757,110790.0,110770.0,0.08969012]
[1760547932514,0.01880807,110790.0,110770.0,0.08969012]
[1760547932730,0.75734674,110790.0,110750.0,0.34]
[1760547932937,5.012e-05,110790.0,110760.0,0.09866252]
[1760547933164,0.75734674,110790.0,110760.0,0.08969012]
[1760547933389,0.73858879,110790.0,110760.0,0.08969012]
[1760547933616,0.01875795,110780.0,110760.0,0.08969012]
[1760547933851,5.012e-05,110790.0,110760.0,0.08969012]
[1760547933852,0.01880807,110790.0,110760.0,0.08969012]
[1760547934074,0.01880807,110790.0,110760.0,0.10610092]
[1760547934312,0.75734674,110790.0,110760.0,0.08969012]
[1760547934532,0.73858879,110790.0,110760.0,0.08969012]
[1760547934750,0.01875795,110780.0,110760.0,0.08969012]
[1760547934975,0.01875795,110780.0,110760.0,0.10513782]
[1760547935206,0.7486234,110790.0,110760.0,0.08969012]
[1760547935437,0.01875795,110780.0,110760.0,0.08969012]
[1760547937060,0.01875795,110780.0,110750.0,0.34]
[1760547937061,0.75729662,110780.0,110750.0,0.34]
[1760547937279,0.73853867,110780.0,110750.0,0.42969012]
[1760547937507,0.01640099,110770.0,110750.0,0.08969012]
[1760547937748,0.01640099,110770.0,110740.0,0.08079706]
[1760547937749,0.75493966,110770.0,110740.0,0.08079706]
[1760547937990,0.73853867,110770.0,110740.0,0.17048718]
[1760547938211,0.01875795,110760.0,110740.0,0.16144222]
[1760547938439,0.01875795,110760.0,110730.0,0.01425356]
[1760547938659,0.01875795,110760.0,110730.0,0.44394368]
[1760547938878,0.04766102,110760.0,110730.0,0.42969012]
[1760547939100,0.03618228,110760.0,110730.0,0.42969012]
[1760547939557,0.05494023,110760.0,110730.0,0.42969012]
[1760547939768,0.01875795,110760.0,110740.0,0.1067241]
[1760547940203,0.01875795,110760.0,110740.0,0.11580801]
[1760547940419,0.01875795,110760.0,110740.0,0.08969012]
[1760547940844,0.01875795,110760.0,110740.0,0.10775044]
[1760547941068,0.01875795,110760.0,110740.0,0.10875044]
[1760547941287,0.01875795,110760.0,110740.0,0.09069012]
[1760547941722,0.01875795,110760.0,110740.0,0.10791945]
[1760547942008,0.01270987,110760.0,110740.0,0.10791945]
[1760547942245,0.01826512,110780.0,110750.0,1.07853867]
[1760547942468,0.01880807,110790.0,110760.0,0.09406176]
[1760547942908,0.01306599,110790.0,110760.0,0.09725092]
[1760547943131,0.01880807,110790.0,110760.0,0.09725092]
[1760547943363,0.04842214,110790.0,110760.0,0.09725092]
[1760547943570,0.05499035,110790.0,110760.0,0.09725092]
[1760547943793,0.04498339,110790.0,110760.0,0.08969012]
[1760547944028,0.04682614,110790.0,110760.0,0.08969012]
[1760547944490,0.05499035,110790.0,110760.0,0.09634608]
[1760547944700,0.05499035,110790.0,110760.0,0.08969012]
[1760547944701,0.01880807,110790.0,110760.0,0.08969012]
[1760547946958,0.01880807,110790.0,110770.0,0.00281267]
[1760547947196,0.01880807,110790.0,110780.0,0.08969012]
[1760547947197,5.012e-05,110790.0,110780.0,0.08969012]
[1760547947418,5.012e-05,110790.0,110780.0,0.82822879]
[1760547947864,5.012e-05,110790.0,110780.0,0.08969012]
[1760547948728,5.012e-05,110790.0,110780.0,0.09279829]
[1760547948942,5.012e-05,110790.0,110780.0,0.09573819]
[1760547950512,5.012e-05,110790.0,110780.0,0.08969012]
[1760547950726,5.012e-05,110790.0,110780.0,0.09812117]
[1760547952497,5.012e-05,110790.0,110780.0,0.09069012]
[1760547952728,5.012e-05,110790.0,110780.0,0.27122812]
[1760547952969,0.18057182,110790.0,110780.0,0.09069012]
[1760547953653,0.18057182,110790.0,110780.0,0.27122812]
[1760547954121,5.012e-05,110790.0,110780.0,0.27122812]
[1760547954569,0.19932977,110790.0,110780.0,0.27122812]
[1760547954788,0.18057182,110790.0,110780.0,0.27122812]
[1760547955946,5.012e-05,110790.0,110780.0,0.27122812]
[1760547956588,0.18057182,110790.0,110780.0,0.09069012]
[1760547958065,0.18057182,110790.0,110780.0,0.001]
[1760547958066,0.93591627,110790.0,110780.0,0.001]
[1760547958488,0.1973776,110790.0,110780.0,0.001]
[1760547959131,0.1973776,110790.0,110770.0,0.18055319]
[1760547959285,0.19653773,110780.0,110770.0,0.27024331]
[1760547959493,0.180538,110780.0,110770.0,0.27024331]
[1760547959890,0.18057182,110790.0,110770.0,0.27024331]
[1760547960099,0.01007212,110780.0,110770.0,0.27024331]
[1760547960285,5.012e-05,110790.0,110780.0,0.180538]
[1760547960484,5.012e-05,110790.0,110780.0,1.00876679]
[1760547960700,5.012e-05,110790.0,110780.0,0.27022812]
[1760547961120,0.19932977,110790.0,110780.0,0.08969012]
[1760547961327,0.18057182,110790.0,110780.0,0.27022812]
[1760547961949,5.012e-05,110790.0,110780.0,0.27022812]
[1760547962158,0.18057182,110790.0,110780.0,0.27022812]
[1760547962309,0.19932977,110790.0,110780.0,0.27022812]
[1760547962511,0.18057182,110790.0,110780.0,0.08969012]
[1760547962756,0.18057182,110790.0,110780.0,0.09069012]
[1760547963111,0.18057182,110790.0,110780.0,0.27122812]
[1760547963317,0.18057182,110790.0,110780.0,0.09069012]
[1760547963543,0.91911049,110790.0,110780.0,0.09069012]
[1760547963775,0.91911049,110790.0,110780.0,0.001]
[1760547964825,0.18054411,110780.0,110760.0,0.18959401]
[1760547965032,0.18054057,110780.0,110760.0,0.29728936]
[1760547965210,0.18054057,110780.0,110760.0,0.27928413]
[1760547966680,0.18054057,110780.0,110760.0,0.28028413]
[1760547967598,0.1895979,110790.0,110770.0,0.28829985]
[1760547967844,5.012e-05,110790.0,110780.0,0.180538]
[1760547968054,0.18057182,110790.0,110770.0,0.27024442]
[1760547968311,0.19932977,110790.0,110770.0,0.27024442]
[1760547968523,0.18057182,110790.0,110770.0,0.27024442]
[1760547968765,0.18057182,110790.0,110780.0,0.01505737]
[1760547969011,0.18057182,110790.0,110780.0,0.19559537]
[1760547969238,5.012e-05,110790.0,110780.0,0.27022812]
[1760547969656,0.18057182,110790.0,110780.0,0.27022812]
[1760547970109,5.012e-05,110790.0,110780.0,0.27022812]
[1760547970322,0.18057182,110790.0,110780.0,0.27022812]
[1760547970560,5.012e-05,110790.0,110780.0,0.27022812]
[1760547970770,5.012e-05,110790.0,110780.0,0.61022812]
[1760547971625,5.012e-05,110790.0,110780.0,0.61122812]
[1760547971866,5.012e-05,110790.0,110780.0,1.34976679]
[1760547972090,5.012e-05,110790.0,110780.0,1.46392679]
[1760547972300,5.012e-05,110790.0,110780.0,1.34976679]
[1760547972513,5.012e-05,110790.0,110780.0,1.46392679]
[1760547972949,5.012e-05,110790.0,110780.0,0.61122812]
[1760547973153,5.012e-05,110790.0,110780.0,0.72538812]
[1760547973393,5.012e-05,110790.0,110780.0,0.61122812]
[1760547973627,0.18057182,110790.0,110780.0,0.61122812]
[1760547973843,5.012e-05,110790.0,110780.0,0.61122812]
[1760547974092,0.18057182,110790.0,110780.0,0.09069012]
[1760547974339,0.18057182,110790.0,110780.0,0.001]
[1760547974340,0.91911049,110790.0,110780.0,0.001]
[1760547974967,0.18057182,110790.0,110770.0,0.18055261]
[1760547975201,0.18057182,110790.0,110770.0,0.27024273]
[1760547975426,0.18057182,110790.0,110780.0,0.180538]
[1760547975875,0.18057351,110790.0,110770.0,0.27024273]
[1760547976098,0.18057351,110790.0,110780.0,0.180538]
[1760547976319,0.18057351,110790.0,110770.0,0.27024273]
[1760547976559,5.012e-05,110790.0,110780.0,0.28828192]
[1760547976782,0.19932977,110790.0,110770.0,0.27024273]
[1760547977010,0.180538,110780.0,110770.0,0.27024442]
[1760547977244,0.180538,110780.0,110770.0,0.08969012]
[1760547977464,0.91911049,110790.0,110770.0,0.27024442]
[1760547977714,0.18057182,110790.0,110770.0,0.27024442]
[1760547977897,0.19932977,110790.0,110770.0,0.27024442]
[1760547978172,0.00419707,110780.0,110770.0,0.27024442]
[1760547982830,0.18473507,110780.0,110770.0,0.27024442]
[1760547983492,0.00419707,110780.0,110770.0,0.27024442]
[1760547983730,0.18473507,110780.0,110770.0,0.27024442]
[1760547983971,0.18473507,110780.0,110770.0,0.08969012]
[1760547984190,0.92327374,110780.0,110770.0,0.08969012]
[1760547984415,0.18055656,110770.0,110750.0,0.18058023]
[1760547984638,0.18055656,110770.0,110760.0,0.08969012]
[1760547985085,0.18055656,110770.0,110760.0,0.2701284]
[1760547985540,0.67123259,110780.0,110760.0,0.2701284]
[1760547985764,0.01875795,110770.0,110760.0,0.2701284]
[1760547986178,0.19931225,110770.0,110760.0,0.2701284]
[1760547986414,0.1805543,110770.0,110760.0,0.2701284]
[1760547986837,0.1805543,110770.0,110760.0,0.0895578]
[1760547987503,0.65802492,110770.0,110760.0,0.1805706]
[1760547987711,0.68007536,110780.0,110760.0,0.1805706]
[1760547987956,0.1805543,110770.0,110760.0,0.1805706]
[1760547988163,0.1805543,110770.0,110750.0,0.18961505]
[1760547988367,0.1805543,110770.0,110760.0,0.1805706]
[1760547988786,0.20260474,110780.0,110760.0,0.1805706]
[1760547988998,0.67123259,110780.0,110760.0,0.1805706]
[1760547989229,0.67123259,110780.0,110760.0,0.27026072]
[1760547989448,0.19931225,110770.0,110760.0,0.27026072]
[1760547989668,0.1805543,110770.0,110760.0,0.08969012]
[1760547989875,0.1805543,110770.0,110750.0,0.18058353]
[1760547990094,0.1805543,110770.0,110750.0,0.27027365]
[1760547990354,0.1805706,110760.0,110750.0,0.08969012]
[1760547990783,0.65802492,110770.0,110750.0,0.27027702]
[1760547991011,0.1805543,110770.0,110750.0,0.27027702]
[1760547992493,0.1805706,110760.0,110750.0,0.27027702]
[1760547992910,0.1805706,110760.0,110750.0,0.08969012]
[1760547993093,0.1805706,110760.0,110750.0,0.27027702]
[1760547993333,0.65802492,110770.0,110750.0,0.27027702]
[1760547993546,0.01875795,110760.0,110750.0,0.27027702]
[1760547993758,0.1805543,110770.0,110750.0,0.27027702]
[1760547993973,0.20286298,110780.0,110760.0,0.1805706]
[1760547993974,0.6803336,110780.0,110760.0,0.1805706]
[1760547994196,0.1805543,110770.0,110760.0,0.27026072]
[1760547994899,0.18473627,110780.0,110760.0,0.27026072]
[1760547995104,0.00419707,110780.0,110770.0,0.1805543]
[1760547995313,0.18473507,110780.0,110770.0,0.27024442]
[1760547995546,0.18473507,110780.0,110770.0,0.08969012]
[1760547995755,0.18473507,110780.0,110770.0,0.27024442]
[1760547995960,0.18473507,110780.0,110770.0,0.08969012]
[1760547996875,0.00419707,110780.0,110770.0,0.27024442]
[1760547997075,0.18473507,110780.0,110770.0,0.08969012]
[1760547997283,0.18473507,110780.0,110770.0,0.10774555]
[1760547997492,0.18473507,110780.0,110770.0,0.08969012]
[1760547997718,0.66220569,110780.0,110770.0,0.08969012]
[1760547998124,0.18473507,110780.0,110770.0,0.08969012]
[1760547998328,0.18473507,110780.0,110770.0,0.28829985]
[1760547998506,0.18473507,110780.0,110770.0,0.27024442]
[1760547999280,0.00419707,110780.0,110770.0,0.27024442]
[1760547999488,0.18473507,110780.0,110770.0,0.27024442]
[1760547999707,0.00419707,110780.0,110770.0,0.27024442]
[1760548001851,0.18473507,110780.0,110770.0,0.08969012]
[1760548002398,0.180579,110760.0,110740.0,0.31611926]
[1760548002602,0.65804633,110770.0,110750.0,0.27027702]
[1760548002845,0.18057571,110770.0,110750.0,0.27027702]
[1760548002999,0.18057571,110770.0,110760.0,0.01805706]
[1760548003197,0.18057571,110770.0,110760.0,0.10774718]
[1760548003403,0.18057571,110770.0,110760.0,0.08969012]
[1760548003614,0.18057571,110770.0,110760.0,0.10774718]
[1760548003818,0.18057571,110770.0,110760.0,0.08969012]
[1760548007460,0.18477278,110770.0,110760.0,0.08969012]
[1760548008729,0.18477278,110770.0,110760.0,0.27026072]
[1760548009591,0.00419707,110770.0,110760.0,0.27026072]
[1760548009807,0.00419707,110770.0,110760.0,0.74773134]
[1760548010259,0.00419707,110770.0,110760.0,0.27026072]
[1760548011366,0.18475137,110770.0,110760.0,0.27026072]
[1760548011587,0.00419707,110770.0,110760.0,0.27026072]
[1760548012886,0.18475137,110770.0,110760.0,0.27026072]
[1760548013102,0.66222199,110770.0,110760.0,0.08969012]
[1760548013541,0.18475137,110770.0,110760.0,0.08969012]
[1760548015455,0.18057741,110760.0,110750.0,0.18058572]
[1760548015663,0.18475137,110770.0,110750.0,0.32440743]
[1760548016138,0.19932855,110760.0,110750.0,0.32440743]
[1760548016345,0.1805706,110760.0,110750.0,0.14382171]
[1760548016570,0.18476767,110760.0,110750.0,0.14382171]
[1760548017200,0.18476767,110760.0,110750.0,0.32440861]
[1760548017407,0.00419707,110760.0,110750.0,0.32440861]
[1760548017618,0.20352562,110760.0,110750.0,0.14382171]
[1760548017831,0.20352562,110760.0,110740.0,0.28897804]
[1760548017832,0.18059698,110750.0,110730.0,0.18061024]
[1760548018056,0.01875795,110740.0,110730.0,0.27030036]
[1760548018696,0.19936116,110740.0,110730.0,0.08969012]
[1760548018899,0.18060321,110740.0,110730.0,0.27030964]
[1760548019102,0.1806533,110740.0,110730.0,0.31540323]
[1760548019310,5.009e-05,110740.0,110730.0,0.31540323]
[1760548019491,0.01365707,110740.0,110730.0,0.31540323]
[1760548020546,0.01365707,110740.0,110730.0,0.31640323]
[1760548020982,0.01365707,110740.0,110730.0,0.79387385]
[1760548020983,5.009e-05,110740.0,110730.0,0.79387385]
[1760548021177,5.009e-05,110740.0,110730.0,1.13387385]
[1760548021581,5.009e-05,110740.0,110730.0,1.16101689]
[1760548021791,5.009e-05,110740.0,110730.0,1.67505689]
[1760548022867,5.009e-05,110740.0,110730.0,1.56101689]
[1760548023117,5.009e-05,110740.0,110730.0,1.67505689]
[1760548023799,5.009e-05,110740.0,110730.0,1.56101689]
[1760548024222,5.009e-05,110740.0,110730.0,1.08354627]
[1760548024851,5.009e-05,110740.0,110730.0,1.05640323]
[1760548025058,5.009e-05,110740.0,110730.0,1.53387385]
[1760548025502,5.009e-05,110740.0,110730.0,1.13387385]
[1760548025721,5.009e-05,110740.0,110730.0,0.65640323]
[1760548025925,5.009e-05,110740.0,110730.0,0.31640323]
[1760548026627,0.1806533,110740.0,110730.0,0.13578371]
[1760548026840,5.009e-05,110740.0,110730.0,0.31640323]
[1760548027057,0.1806533,110740.0,110730.0,0.31640323]
[1760548027263,0.19941125,110740.0,110730.0,0.27130964]
[1760548027497,0.1806533,110740.0,110730.0,0.09069012]
[1760548027702,0.1806533,110740.0,110730.0,0.27130964]
[1760548027921,0.1806533,110740.0,110730.0,0.08969012]
[1760548028151,0.1806533,110740.0,110730.0,0.27030964]
[1760548028376,0.1806533,110740.0,110730.0,0.29734128]
[1760548028993,5.009e-05,110740.0,110730.0,0.29734128]
[1760548029201,0.19941125,110740.0,110730.0,0.29734128]
[1760548029408,0.1806533,110740.0,110730.0,0.29734128]
[1760548029822,5.009e-05,110740.0,110730.0,0.29734128]
[1760548030042,0.19941125,110740.0,110730.0,0.29734128]
[1760548030229,0.1806533,110740.0,110730.0,0.29734128]
[1760548030448,5.009e-05,110740.0,110730.0,0.29734128]
[1760548030655,0.01880804,110740.0,110730.0,0.29734128]
[1760548032242,0.19941125,110740.0,110730.0,0.11672176]
[1760548032446,0.1806533,110740.0,110730.0,0.08969012]
[1760548032863,0.1806533,110740.0,110730.0,0.27030964]
[1760548033278,0.18061952,110730.0,110720.0,0.18063432]
[1760548033505,0.18061952,110730.0,110720.0,0.27032444]
[1760548034069,0.18481659,110730.0,110720.0,0.27032444]
[1760548034261,0.18481659,110730.0,110720.0,0.28817788]
[1760548034461,0.18481659,110730.0,110720.0,0.10854356]
[1760548034693,0.18481659,110730.0,110720.0,0.001]
[1760548035069,0.66228721,110730.0,110720.0,0.001]
[1760548035744,0.18481659,110730.0,110720.0,0.001]
[1760548035905,0.66228721,110730.0,110720.0,0.001]
[1760548036108,0.18063583,110720.0,110710.0,0.18065119]
[1760548036313,0.66228721,110730.0,110710.0,0.27034131]
[1760548036511,0.01875795,110720.0,110710.0,0.34226923]
[1760548037921,0.01875795,110720.0,110710.0,0.34326923]
[1760548038138,0.00419707,110730.0,110720.0,0.18063583]
[1760548038355,0.00419707,110730.0,110720.0,0.74779657]
[1760548038565,0.00419707,110730.0,110720.0,1.17747865]
[1760548039211,0.00419707,110730.0,110720.0,1.57747865]
[1760548039416,0.00419707,110730.0,110720.0,1.17747865]
[1760548039830,0.00419707,110730.0,110720.0,1.57747865]
[1760548040047,0.00419707,110730.0,110720.0,2.05494927]
[1760548040269,0.00419707,110730.0,110720.0,1.65494927]
[1760548040486,0.00419707,110730.0,110720.0,1.6785442]
[1760548040701,0.00419707,110730.0,110720.0,2.11472648]
[1760548040911,0.00419707,110730.0,110720.0,2.22876648]
[1760548041328,0.00419707,110730.0,110720.0,2.0785442]
[1760548041531,0.00419707,110730.0,110720.0,1.57747865]
[1760548042788,0.00419707,110730.0,110720.0,2.05494927]
[1760548043416,0.00419707,110730.0,110720.0,1.57747865]
[1760548043629,0.00419707,110730.0,110720.0,2.05494927]
[1760548043845,0.00419707,110730.0,110720.0,2.0785442]
[1760548044271,0.00419707,110730.0,110720.0,2.1925842]
[1760548044490,0.00419707,110730.0,110720.0,2.0785442]
[1760548044698,0.00419707,110730.0,110720.0,2.1925842]
[1760548044906,0.00419707,110730.0,110720.0,2.0785442]
[1760548045111,0.00419707,110730.0,110720.0,2.1925842]
[1760548045372,0.00419707,110730.0,110720.0,2.0785442]
[1760548045586,0.00419707,110730.0,110720.0,1.86226283]
[1760548045795,0.00419707,110730.0,110720.0,1.97630283]
[1760548046708,5.009e-05,110740.0,110730.0,0.18061952]
[1760548046927,5.009e-05,110740.0,110730.0,1.09865159]
[1760548047568,5.009e-05,110740.0,110730.0,1.52579515]
[1760548047785,0.15965035,110760.0,110750.0,0.1805869]
[1760548047994,0.15970049,110760.0,110750.0,0.08969012]
[1760548048220,0.17259109,110760.0,110750.0,0.08969012]
[1760548048432,0.17845844,110760.0,110750.0,0.150718]
[1760548048643,0.18060146,110750.0,110730.0,0.27933248]
[1760548048855,0.18060146,110750.0,110740.0,0.10775044]
[1760548049079,0.18060146,110750.0,110740.0,0.28835365]
[1760548049290,0.15970049,110760.0,110750.0,0.1805869]
[1760548049499,0.15970049,110760.0,110740.0,0.27029333]
[1760548049720,0.15970049,110760.0,110750.0,0.1805869]
[1760548049944,0.1805869,110750.0,110740.0,0.35997541]
[1760548050163,0.1805869,110750.0,110740.0,0.1793722]
[1760548050388,0.1805869,110750.0,110740.0,0.08969012]
[1760548053251,0.18060321,110740.0,110720.0,0.27934173]
[1760548053466,0.18060321,110740.0,110720.0,0.08968208]
[1760548053467,0.18061952,110730.0,110720.0,0.08968208]
[1760548053676,0.19937747,110730.0,110720.0,0.27032595]
[1760548053885,0.18061952,110730.0,110720.0,0.27032595]
[1760548054975,0.18061952,110730.0,110720.0,0.08969012]
[1760548055582,0.91927939,110730.0,110720.0,0.08969012]
[1760548055718,0.18061952,110730.0,110720.0,0.08969012]
[1760548056547,0.18065534,110710.0,110700.0,0.18066847]
[1760548056762,0.18065534,110710.0,110700.0,0.31366311]
[1760548057170,0.18065534,110710.0,110700.0,0.13299464]
[1760548057370,0.18065534,110710.0,110700.0,0.31366311]
[1760548057772,0.19888636,110720.0,110700.0,0.31381359]
[1760548058002,0.01875795,110710.0,110700.0,0.31381359]
[1760548058432,0.18965049,110730.0,110710.0,0.18065215]
[1760548058636,0.18965049,110730.0,110710.0,0.31978884]
[1760548058827,0.18060321,110740.0,110720.0,0.08969012]
[1760548058985,0.18061952,110730.0,110720.0,0.08969012]
[1760548060370,0.18063583,110720.0,110700.0,0.2241182]
[1760548060569,0.18063583,110720.0,110710.0,0.27034227]
[1760548060776,0.18063583,110720.0,110710.0,0.31978832]
[1760548061001,0.18063583,110720.0,110710.0,0.31978806]
[1760548061206,0.18063583,110720.0,110710.0,0.27034201]
[1760548061386,0.18063583,110720.0,110710.0,0.08969012]
[1760548061816,0.18063583,110720.0,110710.0,0.27034227]
[1760548062231,0.18063583,110720.0,110710.0,0.08969012]
[1760548063069,0.18063583,110720.0,110710.0,0.27034227]
[1760548063900,0.18063583,110720.0,110710.0,0.08969012]
[1760548064099,0.18063583,110720.0,110710.0,0.27034227]
[1760548064502,0.18063583,110720.0,110710.0,0.32069166]
[1760548064733,0.18063583,110720.0,110710.0,0.08969012]
[1760548065362,0.18063583,110720.0,110710.0,0.27034227]
[1760548065565,0.18063583,110720.0,110710.0,0.08969012]
[1760548066161,0.18063583,110720.0,110710.0,0.27034227]
[1760548067115,0.18063583,110720.0,110710.0,0.08969012]
[1760548067275,0.18063583,110720.0,110710.0,0.27034227]
[1760548068458,0.18063583,110720.0,110710.0,0.08969012]
[1760548069080,0.18063583,110720.0,110710.0,0.27034227]
[1760548070737,0.18062299,110730.0,110720.0,0.18063583]
[1760548070953,0.18063583,110720.0,110710.0,0.27034227]
[1760548072916,0.18063583,110720.0,110710.0,0.08969012]
[1760548073130,0.18063583,110720.0,110710.0,0.27034227]
[1760548073401,0.18062299,110730.0,110710.0,0.3325038]
[1760548073618,0.19939378,110720.0,110710.0,0.3325038]
[1760548073834,0.18062299,110730.0,110710.0,0.3325038]
[1760548074047,0.19939378,110720.0,110710.0,0.3325038]
[1760548074262,0.18063583,110720.0,110710.0,0.3325038]
[1760548074479,0.18063583,110720.0,110710.0,0.15185165]
[1760548074695,0.18063583,110720.0,110710.0,0.27034227]
[1760548075333,0.18063583,110720.0,110710.0,0.08969012]